Cogmind - Beta 13 @@@ ROGUE MODE // 2024.07.12 @ 15:00:04 Player: purzer Result: Destroyed by S-10 Pest with Light Assault Rifle Performance ------------- Evolutions (1) 500 Regions Visited (2) 400 Robots Destroyed (16) 80 Value Destroyed (406) 406 Prototype IDs (0) 0 Alien Tech Used (0) 0 Bonus (0) 0 TOTAL SCORE: 1386 Bonus ------- None Cogmind --------- Core Integrity 0/400 Matter 118/300 Energy 93/100 System Corruption 0% Temperature Cool (27) Movement Core (350) Ox6 Location -9/Materials Parts ------- > --- POWER (1) -------- (None) > --- PROPULSION (4) --- (None) > --- UTILITY (2) ------ Large Storage Unit Structural Scanner > --- WEAPON (2) ------- (None) > --- INVENTORY (15) --- Aluminum Leg Improved Heat Sink Structural Scanner Peak State ------------ > --- POWER ------------ Light Ion Engine > --- PROPULSION ------- Aluminum Leg Aluminum Leg > --- UTILITY ---------- Improved Heat Sink Structural Scanner > --- WEAPON ----------- Assault Rifle Light Assault Rifle > --- INVENTORY -------- Aluminum Leg EM Pulse Gun Beam Cannon Light Assault Rifle [Rating: 9] Favorites ----------- Power Light Ion Engine Engine Light Ion Engine Propulsion Aluminum Leg Leg Aluminum Leg Utility Structural Scanner Device Structural Scanner Storage Large Storage Unit Weapon Assault Rifle Energy Gun EM Pulse Gun Energy Cannon Beam Cannon Ballistic Gun Assault Rifle Ballistic Cannon Improved Light Cannon Build | -11 -10 -9 ------- Run | Yrd Mat Mat Slots Evolved 2 | . . 2 Power . | . . . Propulsion 2 | . . 2 Utility . | . . . Weapon . | . . . Parts Attached 22 | 5 9 8 Power 4 | 1 1 2 Engine 4 | 1 1 2 Core . | . . . Reactor . | . . . Propulsion 3 | 2 1 . Treads . | . . . Leg 3 | 2 1 . Wheel . | . . . Hover . | . . . Flight . | . . . Utility 3 | . 3 . Device 2 | . 2 . Storage 1 | . 1 . Processor . | . . . Hackware . | . . . Protection . | . . . Artifact . | . . . Weapon 12 | 2 4 6 Energy Gun 1 | . . 1 Energy Cannon 2 | . 1 1 Ballistic Gun 7 | 2 3 2 Ballistic Cannon 2 | . . 2 Launcher . | . . . Special Weapon . | . . . Impact Weapon . | . . . Slashing Weapon . | . . . Piercing Weapon . | . . . Special Melee Weapon . | . . . Unidentified Prototypes . | . . . Parts Lost 11 | . 1 10 Power 3 | . 1 2 Propulsion 2 | . . 2 Utility . | . . . Weapon 6 | . . 6 Highest Loss Streak 10 | . 1 10 To Critical Strikes . | . . . Average Slot Usage (%) 78 | . 84 65 Engine 11 | . 13 8 Leg 24 | . 28 14 Device 11 | . 11 11 Storage 5 | . 2 11 Energy Cannon 4 | . 3 6 Ballistic Gun 19 | . 24 7 Ballistic Cannon 1 | . . 4 Naked Turns . | . . . Heaviest Build 31 | 6 29 31 Greatest Support 20 | 20 20 20 Greatest Overweight (x) 9 | . 1 9 Average Overweight (x) . | . . 1 Largest Inventory Capacity 15 | 5 15 15 Average Capacity 8 | 5 6 15 Most Carried 8 | 3 7 8 Average Carried 4 | . 3 6 Final Capacity 15 | 5 15 15 Final Carried 7 | 1 7 3 Class Distribution -------------------- 100% | Mutant Dominant Class ---------------- Mutant | -10/Materials Mutant | -9/Materials Resources | -11 -10 -9 ----------- Run | Yrd Mat Mat Matter Collected 397 | 266 131 . Remotely . | . . . Salvage Created 406 | 49 179 178 Parts 36 | 1 18 17 Haulers Intercepted . | . . . Recyclers Shooed . | . . . Parts Field Recycled . | . . . Retrieved Matter . | . . . Parts Self-Destructed . | . . . Prevented . | . . . Kills | -11 -10 -9 ------- Run | Yrd Mat Mat Combat Hostiles Destroyed 14 | 1 6 7 Guns 7 | 1 6 . Cannons 4 | . . 4 AOE 3 | . . 3 Classes Destroyed 5 | 1 2 2 Worker 1 | . . 1 Watcher 1 | . 1 . Swarmer 6 | . 3 3 Grunt 7 | 1 3 3 Sentry 1 | . . 1 Best Kill Streak 6 | 1 6 5 Combat Bots Only 5 | 1 5 4 Max Kills in Single Turn 3 | 1 1 3 Gunslinging . | . . . Exploded 3 | . . 3 Melee . | . . . Uniques/NPCs Destroyed . | . . . Combat | -11 -10 -9 -------- Run | Yrd Mat Mat Hostile Shots Fired 244 | 5 37 202 Missed 65 | 3 9 53 Damage Taken 1779 | 20 349 1410 Core 539 | . 131 408 Absorbed by Shields . | . . . Core Remaining (%) 73 | 100 47 . Volleys Fired 49 | 4 22 23 Largest 2 | 2 2 2 Hottest 100 | 40 40 100 Shots Fired 93 | 8 44 41 Gun 71 | 8 44 19 Cannon 22 | . . 22 Launcher . | . . . Special . | . . . Kinetic 82 | 8 44 30 Thermal 8 | . . 8 Explosive . | . . . Electromagnetic 3 | . . 3 Robot Hit Streak 7 | 3 6 7 Robot Miss Streak 6 | 1 4 6 Penetration Max . | . . . Secondary Targets 2 | . 2 . Max Gunslinging Chain 1 | . 1 . Shots Hit Robots 52 | 5 25 22 Core Hits 25 | 2 12 11 Critical Kills . | . . . Critical Parts Destroyed . | . . . Critical Strikes . | . . . Melee Attacks . | . . . Impact . | . . . Slashing . | . . . Piercing . | . . . Sneak Attacks . | . . . Combat Hostiles . | . . . Follow-up Attacks . | . . . Damage Inflicted 893 | 51 270 572 Guns 447 | 51 270 126 Cannons 276 | . . 276 Explosions 170 | . . 170 Melee . | . . . Ramming . | . . . Kinetic 592 | 51 270 271 Thermal 275 | . . 275 Explosive . | . . . Electromagnetic 26 | . . 26 Impact . | . . . Slashing . | . . . Piercing . | . . . Highest Corruption . | . . . Average Corruption . | . . . Corruption Purged . | . . . Corruption Blocked . | . . . Overload Shots . | . . . Overflow Damage . | . . . Projectiles . | . . . Explosions . | . . . Melee . | . . . Knockbacks 1 | . . 1 Impact . | . . . Kinetic 1 | . . 1 Secondary . | . . . Self-Inflicted Damage . | . . . Shots . | . . . Rammed . | . . . Targets Rammed . | . . . Kicked . | . . . Crushed . | . . . Highest Temperature 87 | 6 9 87 Average Temperature 28 | 6 8 34 Received Heat Transfer 456 | 12 168 276 Siege Activations . | . . . Robots Corrupted . | . . . Combat Hostiles . | . . . Parts Fried . | . . . Impact Corruptions . | . . . Robots Melted . | . . . Combat Hostiles . | . . . Parts Melted 1 | . . 1 Heat Transferred 322 | . . 322 Parts Sabotaged . | . . . Parts Stolen . | . . . Parts Stripped . | . . . Power Chain Reactions 1 | . . 1 Alert | -11 -10 -9 ------- Run | Yrd Mat Mat Peak Influence 265 | 20 190 265 Initial 79 | . 13 79 Average 107 | 1 114 155 Maximum Alert Level 1 | . . 1 Low Security (%) 92 | 100 100 71 Level 1 7 | . . 28 Level 2 . | . . . Level 3 . | . . . Level 4 . | . . . Level 5 . | . . . High Security . | . . . Max Security . | . . . Squads Dispatched 2 | . 1 1 Investigation . | . . . Extermination . | . . . Reinforcement 2 | . 1 1 Assault . | . . . Garrison . | . . . Intercept . | . . . Searches Triggered . | . . . Construction Impeded . | . . . Haulers Reinforced . | . . . Active Scanning Responses . | . . . Cargo Convoy Interrupts . | . . . Stealth | -11 -10 -9 --------- Run | Yrd Mat Mat Distress Signals 1 | . 1 . Communications Jammed . | . . . Distress Signals . | . . . Times Spotted 25 | 1 9 15 Peak Tracking Total 13 | 1 4 13 Tactical Retreats . | . . . Traps | -11 -10 -9 ------- Run | Yrd Mat Mat Traps Triggered 1 | . 1 . Indirectly . | . . . Trap Hack Attempts . | . . . Triggered . | . . . Disarmed . | . . . Reprogrammed . | . . . Reused . | . . . Traps Extracted . | . . . Installed . | . . . Triggered . | . . . Machines | -11 -10 -9 ---------- Run | Yrd Mat Mat Machines Disabled 2 | . 1 1 Max in Single Turn 1 | . 1 1 Machines Repaired . | . . . Machines Dismantled . | . . . Machines Sabotaged . | . . . Overloaded Fab Kills . | . . . Hacking | -11 -10 -9 --------- Run | Yrd Mat Mat Machines Accessed 3 | . 1 2 Terminals 3 | . 1 2 Fabricators . | . . . Repair Stations . | . . . Recycling Units . | . . . Scanalyzers . | . . . Garrison Access . | . . . Total Hacks 8 | . 1 7 Successful 6 | . 1 5 Failed 2 | . . 2 Catastrophic . | . . . Database Lockouts . | . . . Manual . | . . . Terminals 8 | . 1 7 Fabricators . | . . . Repair Stations . | . . . Recycling Units . | . . . Scanalyzers . | . . . Garrison Access . | . . . Terminal Hacks 6 | . 1 5 Record 3 | . . 3 Alert Level 1 | . 1 . Zone Layout 2 | . . 2 Fabricator Hacks . | . . . Repair Station Hacks . | . . . Recycling Unit Hacks . | . . . Scanalyzer . | . . . Garrison Access Hacks . | . . . Unauthorized Hacks . | . . . Terminals . | . . . Fabricators . | . . . Repair Stations . | . . . Recycling Units . | . . . Scanalyzers . | . . . Garrison Access . | . . . Data Cores Recovered . | . . . Used . | . . . Hacking Detections 1 | . . 1 Full Trace Events . | . . . Feedback Events . | . . . Feedback Blocked . | . . . Robot Schematics Acquired . | . . . Robots Built . | . . . Authchips . | . . . Time . | . . . Total Robot Build Rating . | . . . Part Schematics Acquired . | . . . Parts Built . | . . . Authchips . | . . . Time . | . . . Total Part Build Rating . | . . . Parts Repaired . | . . . Time . | . . . Parts Recycled . | . . . Recycled Matter . | . . . Retrieved Matter . | . . . Retrieved Components . | . . . Parts Scanalyzed . | . . . Part Schematics Acquired . | . . . Parts Damaged . | . . . Bothacking | -11 -10 -9 ------------ Run | Yrd Mat Mat Used RIF Installer . | . . . Robots Hacked . | . . . Non-combat . | . . . Combat . | . . . Robot Hacks Applied . | . . . Relay Couplers Released . | . . . Fabnet Peak Effective % . | . . . Robots Rewired . | . . . Allies Hacked . | . . . Hacks Repelled . | . . . Allies | -11 -10 -9 -------- Run | Yrd Mat Mat Total Allies . | . . . Largest Group . | . . . Highest-Rated Group . | . . . Highest-Rated Ally . | . . . Total Orders . | . . . Ally Attacks . | . . . Total Damage . | . . . Kills . | . . . Allies Corrupted . | . . . Allies Melted . | . . . Intel | -11 -10 -9 ------- Run | Yrd Mat Mat Robot Analysis Total . | . . . Derelict Logs Recovered . | . . . Drone Launches . | . . . Drone Recoveries . | . . . Exploration | -11 -10 -9 ------------- Run | Yrd Mat Mat Turns Passed 550 | 87 324 139 Spaces Moved 281 | 66 183 32 Core 21 | 19 . 2 Treads . | . . . Legs 260 | 47 183 30 Wheels . | . . . Hover . | . . . Flight . | . . . Fastest Speed 50 | 50 120 190 Average Speed 131 | 99 130 206 Slowest Speed 500 | 120 190 500 Overloaded Moves . | . . . Propulsion Burnouts . | . . . Robots Hopped . | . . . Cave-ins Triggered . | . . . Exploration Rate (%) 16 | 8 33 9 Regions Visited 2 Branch Regions . Pre-discovered Areas . | . . . Known Exits Taken . | . . . Unknown Exits Taken 2 | 1 1 . Scrap Searched . | . . . Spaces Dug . | . . . Terrain Destroyed 4 | . . 4 Melee . | . . . Projectile . | . . . AOE 4 | . . 4 Terrain Rammed . | . . . Walls Destroyed . | . . . Machines Disabled . | . . . Actions | -11 -10 -9 --------- Run | Yrd Mat Mat Total 374 | 80 230 64 Wait . | . . . Move 279 | 65 182 32 Hop . | . . . Pick Up 18 | 6 11 1 Fast Attach 3 | . 3 . Attach 13 | 5 3 5 Detach . | . . . Swap 6 | . 3 3 Drop 6 | . 6 . Fire 49 | 4 22 23 Melee . | . . . Ram . | . . . Kick . | . . . Crush . | . . . Escape Stasis . | . . . Rewire . | . . . Trap . | . . . Miscellaneous . | . . . Route ------- -11/Scrapyard -10/Materials -9/Materials History --------- Turn | Location | Event 2 | -11/Scrapyard | Met Revision 17 63 | -11/Scrapyard | Discovered new exit (range 8) 88 | -11/Scrapyard | Entered Materials 213 | -10/Materials | Core integrity fell below 50% 328 | -10/Materials | Build established: Mutant 340 | -10/Materials | Discovered new exit (range 12) 412 | -10/Materials | Entered another Materials area 412 | -9/Materials | Evolved 2 slots: Propulsion x2 521 | -9/Materials | Core integrity fell below 50% 534 | -9/Materials | Core integrity fell below 20% 551 | -9/Materials | Destroyed by S-10 Pest with Light Assault Rifle Last Messages --------------- Ion Engine destroyed. Lgt. Cannon destroyed. Aluminum Leg destroyed. Imp. Light Cannon destroyed. S-10 Pest destroyed. Lgt. Ion Engine destroyed. Chain reaction triggered in Lgt. Nuclear Core. Aluminum Leg melted. G-47 Trooper destroyed. S-10 Pest destroyed. G-34 Mercenary destroyed. Beam Cannon destroyed. EM Pulse Gun destroyed. Critical hit (Burn: +37). U-05 Engineer builds a Wall. U-05 Engineer lays Concrete. Assault Rifle destroyed. U-05 Engineer lays Concrete. Critical hit (Burn: +37). Assault Rifle destroyed. Map ----- +----------------------------------------------------+ | ????????####"Y"##"T"## # """ # | | ???????? # + """ # | | ???????? # # """ # | | ???????? # """ """ # # | | ???????? # """ """ # """ # | | ???????? # """ """ ## """ # | | ???????? # ## """ # | | ???????? # T# # | | ???????? # """ """ ######### | | ????????## """ """ # ## | | ????????? """ """ # """ ## | | ???????? # k""" ## | | ???????? + """ ## | | ????????####+####### # ## | | ???????? # # Y ## | | ?????????" """"" # ##/###### | | ?????????"""""""" # ##### ###### | | ?????????""" """ # ##### ##???? | | ????????? # #####[#####? | | ????????? # ##;#;Y#####? | | ?????????####+###### ##;! == ##? | | ????????? ### #%u[=" ##? | | ????????? ### =#%%[= ##? | | ?????????? %/s*=%s ##? | | ????????????#/#### *#%!= ##? | | ???????????? # #%@ ##? | | ???????????? ## ########### | | ????????????"" ## # # | | ????????????"" ## + T # | | ????????????"" + # # | | ???????????? ## # # | | ???????????? ## ### ####### | | ???????????? ## ######????? | | ????????????#### ## #????? | | ???????????????#### #????? | | ??????????????????# #????? | | ????????????########+### #????? | | ????????????????????????????????? | | ????????????????????????????????? | | ????????????????????????????????? | | ????????????????????????????????? | | ????????????????????????????????? | | ????????????????????????????????? | | ????????????????????????????????? | | ????????????????????????????????? | | ????????????????????????????????? | | ????????????????????????????????? | | ????????????????????????????????? | | ????????????????????????????????? | | ????????????????????????????????? | +----------------------------------------------------+ Best States ------------- Heat Dissipation 39 Energy Generation 10 Energy Capacity 250 Matter Stores 300 Matter Capacity 300 Sight Range 16 Terrain Scan Density 10 Evasion (%) 55 Item Schematics ----------------- None Robot Schematics ------------------ None Fabricated ------------ Nothing Alien Tech Used ----------------- None Achievements -------------- None Challenges ------------ None Game ------ Seed ActuatorHypercooledOptics Manual? 0 Play Time 00:11:52 Cumulative 1.9 hours Start 2024.07.12 @ 14:50:42 End 2024.07.12 @ 15:00:04 Sessions 1 Manual Loads 0 Difficulty Rogue Special Mode None Game No. 3 Rogue 3 Adventurer 0 Explorer 0 Win Type - Total 0 Types 0/0/0/0/0/0/0/0/0 Lore% 1 Gallery% 7 Achievement% 9 Wizard Run 0 Options --------- Layout 1 ASCII 0 Keyboard 0 Movement Mouse Keybinds 0 Fullscreen 1 Font 24/Smallcaps Map View 50x35 Zoom Use 0% Tactical HUD 0 Map Filters NONE Filters NONE Steam 1 RUN: 0ad457b8-7948-4938-8c22-d6c931477098